Cogmind - Beta 10.2 @@@ ROGUE MODE // 2021.03.18 @ 20:29:08 Player: goast115 Result: Destroyed by D-53 Grenadier with Mini Grenade Launcher Performance ------------- Evolutions (0) 0 Regions Visited (4) 800 Robots Destroyed (4) 20 Value Destroyed (46) 46 Prototype IDs (0) 0 Alien Tech Used (0) 0 Bonus (0) 0 TOTAL SCORE: 866 Bonus ------- None Cogmind --------- Core Integrity 0/250 Matter 300/300 Energy 100/100 System Corruption 0% Temperature Cool (0) Movement Core (150) Ox2 Location -9/Mines Parts ------- > --- POWER (1) -------- (None) > --- PROPULSION (2) --- (None) > --- UTILITY (2) ------ Medium Storage Unit Signal Interpreter > --- WEAPON (2) ------- (None) > --- INVENTORY (8) ---- Improved Heat Sink High-capacity Battery (400) Medium Matter Pod (100) Visual Processing Unit EM Pulse Gun Assault Rifle Grenade Launcher Peak State ------------ > --- POWER ------------ Ion Engine > --- PROPULSION ------- Aluminum Leg Aluminum Leg > --- UTILITY ---------- Medium Storage Unit Signal Interpreter > --- WEAPON ----------- Assault Rifle Bore Cannon > --- INVENTORY -------- Improved Heat Sink High-capacity Battery Medium Matter Pod Visual Processing Unit EM Pulse Gun Assault Rifle Grenade Launcher [Rating: 12] Favorites ----------- Power Ion Engine Engine Ion Engine Propulsion Aluminum Leg Leg Aluminum Leg Wheel Compact Wheel Utility Signal Interpreter Storage Small Storage Unit Processor Signal Interpreter Weapon Assault Rifle Energy Gun EM Pulse Gun Ballistic Gun Assault Rifle Ballistic Cannon Bore Cannon Build | -11 -10 -10 -10 -9 ------- Run | Scr Mat Min Exi Min Slots Evolved . | . . . . . Power . | . . . . . Propulsion . | . . . . . Utility . | . . . . . Weapon . | . . . . . Parts Attached 13 | 9 1 . 2 1 Power 1 | 1 . . . . Engine 1 | 1 . . . . Core . | . . . . . Reactor . | . . . . . Propulsion 4 | 4 . . . . Treads . | . . . . . Leg 2 | 2 . . . . Wheel 2 | 2 . . . . Hover . | . . . . . Flight . | . . . . . Utility 4 | 1 1 . 2 . Device . | . . . . . Storage 3 | 1 . . 2 . Processor 1 | . 1 . . . Hackware . | . . . . . Protection . | . . . . . Artifact . | . . . . . Weapon 4 | 3 . . . 1 Energy Gun 1 | 1 . . . . Energy Cannon . | . . . . . Ballistic Gun 2 | 2 . . . . Ballistic Cannon 1 | . . . . 1 Launcher . | . . . . . Special Weapon . | . . . . . Impact Weapon . | . . . . . Slashing Weapon . | . . . . . Piercing Weapon . | . . . . . Special Melee Weapon . | . . . . . Unidentified Prototypes . | . . . . . Parts Lost 5 | . . . . 5 Power 1 | . . . . 1 Propulsion 2 | . . . . 2 Utility . | . . . . . Weapon 2 | . . . . 2 Highest Loss Streak 5 | . . . . 5 Average Slot Usage (%) 97 | . 93 100 99 94 Engine 13 | . 14 14 14 12 Leg 27 | . 28 28 28 26 Storage 13 | . 14 14 13 14 Processor 12 | . 8 14 14 14 Ballistic Gun 27 | . 28 28 28 24 Naked Turns . | . . . . . Heaviest Build 41 | 13 13 13 41 24 Greatest Support 20 | 20 20 20 20 20 Greatest Overweight (x) 4 | 4 . . 2 2 Average Overweight (x) . | . . . . . Largest Inventory Capacity 12 | 6 6 6 12 8 Average Capacity 7 | 5 6 6 8 8 Most Carried 8 | 6 6 6 8 8 Average Carried 6 | 3 5 6 6 7 Final Capacity 8 | 6 6 6 8 8 Final Carried 8 | 4 6 6 8 7 Class Distribution -------------------- 100% | Mutant Dominant Class ---------------- Mutant | -10/Materials Mutant | -10/Mines Mutant | -10/Exiles Mutant | -9/Mines Resources | -11 -10 -10 -10 -9 ----------- Run | Scr Mat Min Exi Min Matter Collected 406 | 162 150 . 10 84 Remotely . | . . . . . Salvage Created 102 | . 27 . . 75 Parts 10 | . 3 . . 7 Haulers Intercepted . | . . . . . Recyclers Shooed . | . . . . . Parts Field Recycled . | . . . . . Retrieved Matter . | . . . . . Parts Self-Destructed . | . . . . . Prevented . | . . . . . Kills | -11 -10 -10 -10 -9 ------- Run | Scr Mat Min Exi Min Combat Hostiles Destroyed 6 | . . . . 6 Guns 6 | . . . . 6 Classes Destroyed 3 | . 1 . . 2 Watcher 1 | . 1 . . . Swarmer 3 | . . . . 3 Assembled 3 | . . . . 3 Best Kill Streak 3 | . 1 . . 3 Combat Bots Only 3 | . . . . 3 Max Kills in Single Turn 1 | . 1 . . 1 Gunslinging . | . . . . . Exploded . | . . . . . Melee . | . . . . . Uniques/NPCs Destroyed . | . . . . . Combat | -11 -10 -10 -10 -9 -------- Run | Scr Mat Min Exi Min Damage Taken 891 | . 10 . . 881 Core 263 | . 10 . . 253 Absorbed by Shields . | . . . . . Core Remaining (%) 100 | 100 . . . . Volleys Fired 13 | . 2 . . 11 Largest 2 | . 2 . . 2 Hottest 77 | . 40 . . 77 Shots Fired 26 | . 4 . . 22 Gun 25 | . 4 . . 21 Cannon 1 | . . . . 1 Launcher . | . . . . . Special . | . . . . . Kinetic 26 | . 4 . . 22 Thermal . | . . . . . Explosive . | . . . . . Electromagnetic . | . . . . . Robot Hit Streak 13 | . 3 . . 13 Robot Miss Streak 2 | . 1 . . 2 Penetration Max . | . . . . . Secondary Targets . | . . . . . Shots Hit Robots 20 | . 3 . . 17 Core Hits 11 | . 1 . . 10 Critical Hits 1 | . . . . 1 Critical Kills . | . . . . . Critical Parts Destroyed 1 | . . . . 1 Melee Attacks . | . . . . . Impact . | . . . . . Slashing . | . . . . . Piercing . | . . . . . Sneak Attacks . | . . . . . Combat Hostiles . | . . . . . Follow-up Attacks . | . . . . . Damage Inflicted 216 | . 37 . . 179 Guns 189 | . 37 . . 152 Cannons 27 | . . . . 27 Explosions . | . . . . . Melee . | . . . . . Ramming . | . . . . . Kinetic 216 | . 37 . . 179 Thermal . | . . . . . Explosive . | . . . . . Electromagnetic . | . . . . . Impact . | . . . . . Slashing . | . . . . . Piercing . | . . . . . Highest Corruption . | . . . . . Average Corruption . | . . . . . Corruption Purged . | . . . . . Overload Shots . | . . . . . Overflow Damage . | . . . . . Projectiles . | . . . . . Explosions . | . . . . . Melee . | . . . . . Knockbacks 1 | . . . . 1 Impact . | . . . . . Kinetic 1 | . . . . 1 Secondary . | . . . . . Self-Inflicted Damage . | . . . . . Shots . | . . . . . Rammed . | . . . . . Targets Rammed . | . . . . . Kicked . | . . . . . Crushed . | . . . . . Highest Temperature . | . . . . . Average Temperature . | . . . . . Received Heat Transfer . | . . . . . Siege Activations . | . . . . . Robots Corrupted . | . . . . . Combat Hostiles . | . . . . . Parts Fried . | . . . . . Impact Corruptions . | . . . . . Robots Melted . | . . . . . Combat Hostiles . | . . . . . Parts Melted . | . . . . . Heat Transferred . | . . . . . Parts Sabotaged . | . . . . . Parts Stolen . | . . . . . Parts Stripped . | . . . . . Power Chain Reactions . | . . . . . Missiles Intercepted . | . . . . . Alert | -11 -10 -10 -10 -9 ------- Run | Scr Mat Min Exi Min Peak Influence 70 | . 22 8 . 70 Initial 8 | . . 8 . . Average 26 | . 15 8 . 51 Maximum Alert Level . | . . . . . Low Security (%) 100 | 100 100 100 . 100 Level 1 . | . . . . . Level 2 . | . . . . . Level 3 . | . . . . . Level 4 . | . . . . . Level 5 . | . . . . . High Security . | . . . . . Max Security . | . . . . . Squads Dispatched 2 | . 2 . . . Investigation 2 | . 2 . . . Extermination . | . . . . . Reinforcement . | . . . . . Assault . | . . . . . Garrison . | . . . . . Intercept . | . . . . . Construction Impeded . | . . . . . Haulers Reinforced . | . . . . . Stealth | -11 -10 -10 -10 -9 --------- Run | Scr Mat Min Exi Min Distress Signals 1 | . 1 . . . Communications Jammed . | . . . . . Distress Signals . | . . . . . Times Spotted 13 | . 5 . . 8 Peak Tracking Total 3 | . 3 . . 3 Tactical Retreats . | . . . . . Traps | -11 -10 -10 -10 -9 ------- Run | Scr Mat Min Exi Min Traps Triggered . | . . . . . Indirectly . | . . . . . Trap Hack Attempts . | . . . . . Triggered . | . . . . . Disarmed . | . . . . . Reprogrammed . | . . . . . Reused . | . . . . . Traps Extracted . | . . . . . Installed . | . . . . . Triggered . | . . . . . Machines | -11 -10 -10 -10 -9 ---------- Run | Scr Mat Min Exi Min Machines Disabled . | . . . . . Max in Single Turn . | . . . . . Machines Sabotaged . | . . . . . Garrisons Compromised . | . . . . . Overloaded Fab Kills . | . . . . . Fab Network Shutdowns . | . . . . . Hacking | -11 -10 -10 -10 -9 --------- Run | Scr Mat Min Exi Min Machines Accessed 2 | . 1 . 1 . Terminals 1 | . 1 . . . Fabricators . | . . . . . Repair Stations . | . . . . . Recycling Units . | . . . . . Scanalyzers . | . . . . . Garrison Access . | . . . . . Total Hacks 4 | . 1 . 3 . Successful 3 | . . . 3 . Failed 1 | . 1 . . . Catastrophic . | . . . . . Database Lockouts . | . . . . . Manual . | . . . . . Terminals 1 | . 1 . . . Fabricators . | . . . . . Repair Stations . | . . . . . Recycling Units . | . . . . . Scanalyzers . | . . . . . Garrison Access . | . . . . . Terminal Hacks 3 | . . . 3 . Record 3 | . . . 3 . Fabricator Hacks . | . . . . . Repair Station Hacks . | . . . . . Recycling Unit Hacks . | . . . . . Scanalyzer . | . . . . . Garrison Access Hacks . | . . . . . Unauthorized Hacks . | . . . . . Terminals . | . . . . . Fabricators . | . . . . . Repair Stations . | . . . . . Recycling Units . | . . . . . Scanalyzers . | . . . . . Garrison Access . | . . . . . Data Cores Recovered . | . . . . . Used . | . . . . . Hacking Detections 1 | . 1 . . . Full Trace Events . | . . . . . Feedback Events . | . . . . . Feedback Blocked . | . . . . . Robot Schematics Acquired . | . . . . . Robots Built . | . . . . . Matter . | . . . . . Time . | . . . . . Total Robot Build Rating . | . . . . . Part Schematics Acquired . | . . . . . Parts Built . | . . . . . Matter . | . . . . . Time . | . . . . . Total Part Build Rating . | . . . . . Parts Repaired . | . . . . . Time . | . . . . . Parts Recycled . | . . . . . Recycled Matter . | . . . . . Retrieved Matter . | . . . . . Retrieved Components . | . . . . . Parts Scanalyzed . | . . . . . Part Schematics Acquired . | . . . . . Parts Damaged . | . . . . . Bothacking | -11 -10 -10 -10 -9 ------------ Run | Scr Mat Min Exi Min Used RIF Installer . | . . . . . Robots Hacked . | . . . . . Non-combat . | . . . . . Combat . | . . . . . Robot Hacks Applied . | . . . . . Relay Couplers Released . | . . . . . Robots Rewired . | . . . . . Allies Hacked . | . . . . . Hacks Repelled . | . . . . . Allies | -11 -10 -10 -10 -9 -------- Run | Scr Mat Min Exi Min Total Allies 2 | . . 2 . . Largest Group 2 | . . 2 1 . Highest-Rated Group 46 | . . 46 31 . Highest-Rated Ally 31 | . . 31 31 . Total Orders . | . . . . . Ally Attacks . | . . . . . Total Damage . | . . . . . Kills . | . . . . . Allies Corrupted . | . . . . . Allies Melted . | . . . . . Intel | -11 -10 -10 -10 -9 ------- Run | Scr Mat Min Exi Min Robot Analysis Total . | . . . . . Derelict Logs Recovered . | . . . . . Drone Launches . | . . . . . Drone Recoveries . | . . . . . Exploration | -11 -10 -10 -10 -9 ------------- Run | Scr Mat Min Exi Min Turns Passed 945 | 90 170 65 396 224 Spaces Moved 611 | 55 130 52 227 147 Core 31 | 27 . . . 4 Treads . | . . . . . Legs 580 | 28 130 52 227 143 Wheels . | . . . . . Hover . | . . . . . Flight . | . . . . . Fastest Speed 50 | 50 120 120 120 120 Average Speed 129 | 118 120 120 143 122 Slowest Speed 250 | 250 120 120 180 150 Overloaded Moves . | . . . . . Propulsion Burnouts . | . . . . . Robots Hopped . | . . . . . Cave-ins Triggered . | . . . . . Exploration Rate (%) 28 | 4 32 19 56 32 Regions Visited 4 Branch Regions 3 Pre-discovered Areas 1 | . . . 1 . Known Exits Taken 3 | . 1 1 1 . Unknown Exits Taken 1 | 1 . . . . Scrap Searched . | . . . . . Spaces Dug . | . . . . . Terrain Destroyed . | . . . . . Melee . | . . . . . Projectile . | . . . . . AOE . | . . . . . Terrain Rammed . | . . . . . Walls Destroyed . | . . . . . Machines Disabled . | . . . . . Actions | -11 -10 -10 -10 -9 --------- Run | Scr Mat Min Exi Min Total 750 | 81 141 54 303 171 Wait 62 | 4 . 3 49 6 Move 607 | 54 129 51 226 147 Hop . | . . . . . Pick Up 35 | 11 6 . 16 2 Fast Attach . | . . . . . Attach 13 | 9 1 . 2 1 Detach 3 | 2 . . . 1 Swap . | . . . . . Drop 17 | 1 3 . 10 3 Fire 13 | . 2 . . 11 Melee . | . . . . . Ram . | . . . . . Kick . | . . . . . Crush . | . . . . . Escape Stasis . | . . . . . Rewire . | . . . . . Trap . | . . . . . Miscellaneous . | . . . . . Route ------- -11/Scrapyard -10/Materials (discovered 2 exits: [*Mat] / *Min) -10/Mines -10/Exiles -9/Mines History --------- Turn | Location | Event 22 | -11/Scrapyard | Discovered new exit (range 15) 91 | -11/Scrapyard | Entered Materials 166 | -10/Materials | Met 8R-AWN 204 | -10/Materials | Discovered new exit (range 16) 246 | -10/Materials | Discovered new exit (range 13) 260 | -10/Materials | Identified exit to Mines 261 | -10/Materials | Entered Mines 262 | -10/Mines | Followed 8R-AWN into the Mines 314 | -10/Mines | Build established: Mutant 321 | -10/Mines | Discovered new exit (range 5) 324 | -10/Mines | Identified exit to Exiles 326 | -10/Mines | Entered Exiles 326 | -10/Exiles | Accompanied by 1 ally 356 | -10/Exiles | Led the pair of lost Derelicts to a safe place 405 | -10/Exiles | Welcomed by 8R-AWN 426 | -10/Exiles | Met EX-HEX 527 | -10/Exiles | Met EX-DEC 599 | -10/Exiles | Learned location of Zion (-7) 709 | -10/Exiles | Discovered new exit (range 12) 721 | -10/Exiles | Identified exit to Mines 722 | -10/Exiles | Entered Mines 854 | -9/Mines | Assembled infested the area 859 | -9/Mines | Assisted by a Guerilla fighting off Assembled 935 | -9/Mines | Core integrity fell below 50% 940 | -9/Mines | Core integrity fell below 20% 946 | -9/Mines | Destroyed by D-53 Grenadier with Mini Grenade Launcher Last Messages --------------- 00902_ Acquired 22 matter. 00905_ K-01 Serf collects debris. 00914_ Ion Engine destroyed. 00915_ D-53 Grenadier suffers critical hit. 00915_ Destroyed Cmb. Airjet. 00915_ D-53 Grenadier knocked back. 00916_ K-01 Serf destroyed. 00918_ Acquired 4 matter. 00921_ The unstable cave ceiling collapses. 00921_ Bore Cannon destroyed. 00925_ Aluminum Leg destroyed. 00925_ U-05 Engineer lays Concrete. 00927_ The unstable cave ceiling collapses. 00927_ U-05 Engineer lays Concrete. 00927_ Assault Rifle destroyed. 00927_ U-05 Engineer destroyed. 00930_ The unstable cave ceiling collapses. 00941_ Aluminum Leg destroyed. 00943_ The unstable cave ceiling collapses. 00945_ R-06 Scavenger destroyed. Map ----- +----------------------------------------------------+ | ???????????????????## ##?##???##### #????? | | ?????????????????#??# # # ## #?#?# #????? | | ?????????????????# ?# #%"# #?# ######????? | | ?????????????????# ## % #?# #?????????? | | ?????????????????# # ## ####?# #?????????? | | ?????????????????### #%#????# #?????????? | | ???????????????????# # # ###### #?????????? | | ???????????????????## ##[[ #?????????? | | ???????????????????### ########### #?????????? | | ???????????????????# #??????# #?????????? | | ???????????? ######## #??????# #?????????? | | ??????????? %!! #??????# ####??????? | | ??????????? %$%= ##????###"%" #??????? | | ??????????? ######### #???## " #??????? | | ??????????????????????# #???# % ######?? | | ??????????????????????# dd# #????# #?? | | ??????????????????????### ##???# #?? | | ??????????????????????# # #???## #### ### | | ??????????????????????# #????## ### | | ??????????????????????# #??????## ## | | ??????????????????????## ##??????# ###### | | ??????????????????????# #??????## ####### | | ???????????#########??# #???????## ### | | ??????????# ?# #?????????# #?# | | ?????????? # #?????????# #?# | | ??????????????# @= $#????#????# #?# | | ??????????????## =%* #?## ##??#*#?# | | ???????????????## ## ! ### ##?#=#?# !!!! | | ????????????????## #?##### ### #?# !!! | | ?????????????????###??????? """ ==*#?# !! | | ???????????????????????????##### """ ## #?# !!!! | | ???????????????????????????????# """ #?# #?# | | ???????????????????????????????# #?# #?# | | ???????????????????????????????## ### #?# | | ????????????????????????????????# #?# | | ????????????????????????????????# #####?# | | ????????????????????????????????## ##?????# | | ?????????????????????????????????####??????####### | | ?????????????????????????????????????????????????? | | ?????????????????????????????????????????????????? | | | | | | | | | | | | | | | | | | | | | +----------------------------------------------------+ Best States ------------- Heat Dissipation 25 Energy Generation 10 Energy Capacity 250 Matter Stores 300 Matter Capacity 300 Sight Range 16 Terrain Scan Density 10 Evasion (%) 50 Item Schematics ----------------- None Robot Schematics ------------------ None Fabricated ------------ Nothing Alien Tech Used ----------------- None Achievements -------------- None Challenges ------------ None Game ------ Seed AccelerationChargeRifle Manual? 0 Play Time 00:15:15 Cumulative 4.1 hours Start 2021.03.18 @ 20:14:13 End 2021.03.18 @ 20:29:08 Sessions 1 Manual Loads 0 Difficulty Rogue Special Mode None Game No. 10 Rogue 10 Adventurer 0 Explorer 0 Win Type - Total 0 Types 0/0/0/0/0/0/0/0/0 Lore% 4 Gallery% 7 Achievement% 7 Wizard Run 0 Options --------- ASCII 0 Keyboard 1 Movement Numpad Keybinds 0 Fullscreen 2 Font 18/SmallcapsGlow Map View 76x50 Tactical HUD 1 Map Filters NONE Filters NONE Steam 1 RUN: d6366f03-977c-4820-b205-2e51a3ad97b3